{"text_format":"1","workbook":"xlsx","n_sheets":7,"sheets":["Титульний","Таб 1","Таб 2","Таб 2_1","Таб 3","Таб 4","2015"],"not_rendered":{"charts":0,"images":0,"macros":1,"external_links":4,"defined_names":18,"comments":0,"pivot_tables":0},"unopened":[],"bounds":{"document_bytes":16777216,"sheet_cells":100000,"rows_first":2000,"rows_last":500,"rows_between":2000,"halvings":0,"cell_chars":16384,"cell_head_chars":4096},"cells_cut":0,"cells_raw":0,"read":"whole","date_system":"1900"}

{"sheet":"Титульний","index":0,"n_rows":22,"n_cols":5,"rows_kept":22,"cut":false,"hidden":false,"merged":[[21,0,21,4],[1,0,1,4],[3,0,3,4],[4,0,4,4],[15,0,15,2],[14,0,14,2],[6,0,6,2],[6,4,14,4],[12,0,12,2],[8,0,8,2],[9,0,9,2],[10,0,10,2],[11,0,11,2],[13,0,13,2],[7,0,7,2]]}
[]
["ЗВІТНІСТЬ"]
[]
["Звіт про протидію легалізації доходів, одержаних злочинним шляхом"]
["за 3 місяці 2017 року"]
[]
["Подають",null,null,"Терміни подання","Форма  № 1-ЛВ\n\nквартальна\n\nЗАТВЕРДЖЕНО\nнаказ Генерального прокурора України\n\nвід 28 листопада 2012 № 124\nіз змінами та доповненнями,\nвід 11 лютого 2014 року № 17\n\nза погодженням з Держстатом України "]
["Слідчі підрозділи прокуратур Автономної Республіки Крим, областей, міст Києва і Севастополя та Дніпровської екологічної прокуратури – прокурору Автономної Республіки Крим, області, міст Києва і Севастополя, Дніпровському екологічному прокурору",null,null,"до 2 числа за звітним періодом"]
["Прокурори з нагляду за додержанням законів у воєнній сфері (на правах міських) – прокурору регіону з нагляду за додержанням законів у воєнній сфері",null,null,"до 2 числа за звітним періодом"]
["Прокурори Автономної Республіки Крим, областей, міст Києва і Севастополя, Дніпровської екологічної прокуратури – до Генеральної прокуратури України",null,null,"до 3 числа за звітним періодом"]
["Прокурори регіонів з нагляду за додержанням законів у воєнній сфері – до Головного управління нагляду за додержанням законів у воєнній сфері Генеральної прокуратури України",null,null,"до 3 числа за звітним періодом"]
["Структурні підрозділи Генеральної прокуратури України, які здійснюють досудове розслідування, – до відділу статистичної інформації та аналізу управління статистики, організації та ведення Єдиного реєстру досудових розслідувань Генеральної прокуратури України",null,null,"до 2 числа за звітним періодом"]
["Слідче управління Головного управління нагляду за додержанням законів у воєнній сфері – відповідному заступнику Генерального прокурора України",null,null,"до 2 числа за звітним періодом"]
["Головне управління нагляду за додержанням законів у воєнній сфері Генеральної прокуратури України – до відділу статистичної інформації та аналізу управління статистики, організації та ведення Єдиного реєстру досудових розслідувань Генеральної прокуратури України",null,null,"до 4 числа за звітним періодом"]
["Генеральна прокуратура України – до Державної служби статистики України (півріччя, рік)",null,null,"на 35 день за звітним періодом (квартал)"]
[]
[]
["Респондент: "]
["Найменування:","Прокуратура Чернігівської області"]
["Місцезнаходження:","14000 Чернігів, вул.Князя Чорного,9"]
[]
["(поштовий індекс, область, район, населений пункт, вулиця/провулок, площа тошо, № будинку)"]

{"sheet":"Таб 1","index":1,"n_rows":28,"n_cols":13,"rows_kept":28,"cut":false,"hidden":false,"merged":[[6,0,6,2],[17,0,17,2],[18,1,18,2],[19,0,19,2],[1,0,1,12],[2,0,5,2],[2,3,5,3],[2,4,4,5],[2,6,2,11],[2,12,5,12],[3,6,5,6],[3,7,5,7],[3,8,5,8],[3,9,3,10],[3,11,5,11],[4,9,5,9],[22,0,22,2],[7,0,7,2],[8,0,13,0],[8,1,8,2],[10,1,10,2],[11,1,13,1],[14,0,14,2],[15,0,16,0],[15,1,15,2],[16,1,16,2],[20,0,21,0],[20,1,20,2],[23,0,23,2],[24,0,24,2],[25,0,25,2],[26,0,26,2],[27,0,27,2]]}
[]
["Таблиця 1. Відомості щодо протидії легалізації (відмиванню) доходів, одержаних злочинним шляхом, по кримінальних правопорушеннях, у яких досудове розслідування проводилося слідчими органів прокуратури"]
[null,null,null,null,"Кримінальні правопорушення, що передбачені статтями КК України",null,"Кримінальні правопорушення, пов'язані, вчинені\n(із граф 1,2)",null,null,null,null,null,"Кримі-нальні правопо-рушення передбачені ст.306 КК України"]
[null,null,null,null,null,null,"з привати-зацією","із здійсненням зовнішньо-економічної діяльності","у фінансово- кредитній сфері","у т.ч.",null,"у паливно- енергетич-ному ком-+плексі"]
[null,null,null,null,null,null,null,null,null,"у сфері банківсь-кої діяль-ності","з них"]
[null,null,null,null,"ст.209","ст.209-1"]
["а",null,null,"б",1,2,null,null,null,null,null,null,9]
["Кількість кримінальних правопорушень, досудове розслідування у яких  проводилося у звітному періоді",null,null,1]
["у т.ч.:","кримінальні правопорушення за якими досудове розслідування закінчено у звітному періоді",null,2]
[null,"з них:","направлено до суду з обвинувальним актом (ст. 291 КПК України)",3]
[null,"Кількість осіб, які їх учинили, встановлені",null,4]
[null,"зупинено провадження у звітному періоді з підстав","за п.1 ст.280 КПК України у зв'язку з хворобою підозрюваного ",5]
[null,null,"за п.2 ст.280 КПК України у зв'язку з не встановленням місцезнаходження підозрюваного ",6]
[null,null,"за п.3 ст.280 КПК України для виконання процесуальних дій у межах міжнародного співробітництва ",7]
["Обліковано у звітному періоді кримінальних правопорушень",null,null,8]
["у т.ч.:","кримінальні правопорушення у яких закінчено досудове розслідування",null,9]
[null,"встановлені особи, які їх учинили ",null,10]
["Виключено з обліку кримінальних правопорушень, кримінальні провадження за якими закрито ",null,null,11]
["у т.ч.:","з підстав, передбачених пп. 1, 2, 4, 6 ч. 1 ст. 284 КПК України",null,12]
["Виявлено осіб, які вчинили кримінальні правопорушення",null,null,13]
["у т.ч.:","стосовно яких кримінальні провадження направлені до суду у порядку ст.291 КПК України",null,14]
[null,"з них:","застосовано запобіжний захід у вигляді тримання під вартою ",15]
["Встановлена сума коштів та майна, одержаних від незаконного обігу наркотичних засобів, психотропних речовин, їх аналогів або прекурсорів (грн.)",null,null,16,"x","x","x","x","x","x","x","x"]
["Встановлена сума коштів та майна, використаних з метою продовження незаконного обігу наркотичних засобів, психотропних речовин, їх аналогів або прекурсорів (грн.)",null,null,17,"x","x","x","x","x","x","x","x"]
["Встановлена сума легалізованих коштів та майна (грн.)",null,null,18]
["Вилучено коштів та майна (грн.)",null,null,19]
["Накладено арешт на майно (грн.)",null,null,20]
["Контрольний рядок",null,null,21,{"$f":"SUM(E8:E22,E25:E27)","v":0},{"$f":"SUM(F8:F22,F25:F27)","v":0},0,0,0,0,0,0,{"$f":"SUM(M8:M27)","v":0}]

{"sheet":"Таб 2","index":2,"n_rows":23,"n_cols":11,"rows_kept":23,"cut":false,"hidden":false,"merged":[[20,0,21,1],[10,0,10,3],[11,0,11,3],[22,0,22,3],[19,0,19,3],[20,2,20,3],[21,2,21,3],[12,0,18,0],[14,1,14,3],[15,1,18,1],[18,2,18,3],[16,2,17,2],[12,1,13,2],[15,2,15,3],[0,0,0,10],[1,6,1,10],[1,0,2,3],[1,4,2,4],[1,5,2,5],[3,0,3,3],[4,0,4,3],[5,0,5,3],[6,0,9,0],[6,1,8,1],[6,2,6,3],[7,2,7,3],[8,2,8,3],[9,1,9,3]]}
["Таблиця 2. Відомості про закінчення досудових розслідувань у кримінальних провадженнях, у яких досудове розслідування проводилося слідчими органів прокуратури за кримінальними правопорушеннями, передбаченими статтями 209, 209-1, 306 КК України (без повтор"]
[null,null,null,null,null,"Усього","у тому числі за статтями КК України"]
[null,null,null,null,null,null,"ст.209","з них учинені ОГ та ЗО","ст.306","з них учинені ОГ та ЗО","ст.209-1"]
["а",null,null,null,"б",1,2,3,4,5,6]
["Залишок кримінальних проваджень, у яких досудове розслідування не закінчено на початок звітного періоду",null,null,null,1]
["Розпочато досудових розслідувань у звітному періоді",null,null,null,2]
["із рядка 2","надійшло від","МВС",null,3]
[null,null,"СБУ",null,4]
[null,null,"органу, що здійснює контроль за додержанням податкового законодавства",null,5]
[null,"відновлено провадження у раніше зупинених чи закритих провадженнях",null,null,6]
["Закінчено досудове розслідування у кримінальних провадженнях у звітному періоді\n(без повторних)",null,null,null,7]
["Кількість кримінальних проваджень, направлених до суду з обвинувальним актом\n(ст.291 КПК України)",null,null,null,8]
["У цих провадженнях ","сума легалізованих доходів",null,"у великому розмірі",9]
[null,null,null,"в особливо великому розмірі",10]
[null,"обвинувачених осіб",null,null,11]
[null,"з них","з міжнародними зв'язками",null,12]
[null,null,"які вчинили","предикатні кримінальні правопорушення ",13]
[null,null,null,"тільки легалізацію злочинних доходів",14]
[null,null,"заарештованих",null,15]
["Прокурором направлено до суду клопотань про звільнення від кримінальної відповідальності",null,null,null,16]
["з них осіб",null,"обвинувачених",null,17]
[null,null,"які затримувалися уповноваженою особою або утримувалися під вартою",null,18]
["Закрито кримінальних проваджень прокурором",null,null,null,19]

{"sheet":"Таб 2_1","index":3,"n_rows":23,"n_cols":11,"rows_kept":23,"cut":false,"hidden":false,"merged":[[0,0,0,10],[8,1,8,3],[11,0,12,1],[11,2,11,3],[12,2,12,3],[1,6,1,10],[5,0,5,3],[7,0,9,0],[3,0,3,3],[4,0,4,3],[6,0,6,3],[7,1,7,3],[9,1,9,3],[1,4,2,4],[1,5,2,5],[22,0,22,3],[18,0,18,3],[19,0,20,0],[19,1,19,3],[20,2,20,3],[21,0,21,3],[16,0,16,3],[17,0,17,3],[1,0,2,3],[10,0,10,3],[14,0,14,3],[15,1,15,3],[13,0,13,3]]}
["Таблиця 2. (продовження)"]
[null,null,null,null,null,"Усього","у тому числі за статтями КК України"]
[null,null,null,null,null,null,"ст.209","з них учинені ОГ та ЗО","ст.306","з них учинені ОГ та ЗО","ст.209-1"]
["а",null,null,null,"б",1,2,3,4,5,6]
["Направлено кримінальних проваджень за підслідністю",null,null,null,20]
["Об’єднано кримінальних проваджень ",null,null,null,21]
["Зупинено кримінальних проваджень ",null,null,null,22]
["з них:","за п.1 ст.280 КПК України у зв'язку з хворобою підозрюваного",null,null,23]
[null,"за п.2 ст.280 КПК України у зв'язку з не встановленням місцезнаходження підозрюваного",null,null,24]
[null,"за п.3 ст.280 КПК України для виконання процесуальних дій у межах міжнародного співробітництва",null,null,25]
["Залишок незакінчених кримінальних проваджень на кінець звітного періоду",null,null,null,26]
["у т.ч.: відносно осіб",null,"підозрюваних",null,27]
[null,null,"заарештованих",null,28]
["Повернуто судом першої інстанції обвинувальних актів (п. 3 ч. 3 ст. 314 КПК України), клопотань прокурора  про звільнення особи від кримінальної відповідальності (ч. 4 ст. 288 КПК), направлено кримінальних проваджень для здійснення досудового розслідуванн",null,null,null,29]
["Кількість осіб, стосовно яких припинено дію запобіжного заходу у зв’язку з закриттям кримінального    провадження прокурором на підставі ч. 1 ст. 284 КПК.",null,null,null,30]
["з них:","утримувались під вартою",null,null,31]
["Установлена сума доходів, здобутих злочинним шляхом (за обвинувальними актами) (грн.)",null,null,null,32,null,null,null,null,null,"x"]
["Вилучено доходів, одержаних злочинним шляхом у ході досудового слідства (грн.)",null,null,null,33,null,null,null,null,null,"x"]
["Накладено арешт на доходи, здобуті злочинним шляхом (грн.)",null,null,null,34,null,null,null,null,null,"x"]
["у тому числі"," у банках, інших кредитно-фінансових установах",null,null,35,null,null,null,null,null,"x"]
[null,"з них:","розташованих за кордоном",null,36,null,null,null,null,null,"x"]
["Накладено арешт на майно підозрюваних (грн.)",null,null,null,37,null,null,null,null,null,"x"]
["Контрольний рядок",null,null,null,38,{"$f":"SUM('Таб 2'!F5:F23)+SUM(F5:F22)","v":0},{"$f":"SUM('Таб 2'!G5:G23)+SUM(G5:G22)","v":0},{"$f":"SUM('Таб 2'!H5:H23)+SUM(H5:H22)","v":0},{"$f":"SUM('Таб 2'!I5:I23)+SUM(I5:I22)","v":0},{"$f":"SUM('Таб 2'!J5:J23)+SUM(J5:J22)","v":0},{"$f":"SUM('Таб 2'!K5:K23)+SUM(K5:K16)","v":0}]

{"sheet":"Таб 3","index":4,"n_rows":12,"n_cols":8,"rows_kept":12,"cut":false,"hidden":false,"merged":[[11,0,11,2],[5,1,5,2],[6,1,10,1],[0,0,0,7],[5,0,10,0],[3,0,3,2],[4,0,4,2],[1,3,2,3],[1,0,2,2],[1,4,2,4],[1,6,2,6],[1,5,2,5]]}
["Таблиця 3. Відомості про кримінальні правопорушення, які передували (предикатні кримінальні правопорушення) легалізації (відмиванню) доходів, одержаних злочинним шляхом (ст. 209 КК України), у кримінальних провадженнях, у яких досудове розслідування прово"]
[null,null,null,null,"Кількість кримінальних правопорушень, у яких досудове розслідування не закінчене на початок звітного періоду","Зареєст-ровано кримінальних правопорушень у звітному періоді","Кількість кримінальних правопорушень, кримінальні провадження за якими направлені до суду з обвинувальним актом (ст.291 КПК України)","з них:"]
[null,null,null,null,null,null,null,"вчинені ОГ та ЗО"]
["а",null,null,"б",1,2,3,4]
["Усього кримінальних правопорушень",null,null,1]
["з рядка 1","у сфері службової діяльності",null,2]
[null,"у т.ч.:","зловживання владою або службовим становищем (ст. 364)",3]
[null,null,"перевищення влади або службових повноважень (ст. 365)",4]
[null,null,"службова недбалість (ст. 367)",5]
[null,null,"кримінальні правопорушення щодо хабарництва (ст. ст. 368-370)",6]
[null,null,"інші кримінальні правопорушення, вчинені у сфері службової діяльності",7]
["Контрольний рядок",null,null,8,{"$f":"SUM(E5:E11)","v":0},{"$f":"SUM(F5:F11)","v":0},{"$f":"SUM(G5:G11)","v":0},{"$f":"SUM(H5:H11)","v":0}]

{"sheet":"Таб 4","index":5,"n_rows":35,"n_cols":7,"rows_kept":35,"cut":false,"hidden":false,"merged":[[30,0,30,7],[26,4,26,6],[27,4,27,6],[1,0,1,3],[3,0,3,3],[14,2,14,3],[15,2,15,3],[8,2,8,3],[9,2,9,3],[11,2,11,3],[22,0,22,3],[12,2,12,3],[29,4,29,6],[0,0,0,8],[18,0,21,1],[4,1,4,3],[4,0,17,0],[5,2,5,3],[13,2,13,3],[8,1,17,1],[20,2,20,3],[19,2,19,3],[16,2,16,3],[2,0,2,3],[21,2,21,3],[18,2,18,3],[7,1,7,3],[6,1,6,3],[17,2,17,3]]}
["Таблиця 4. Відомості про осіб, які вчинили кримінальні правопорушення у складі організованої групи та злочинної організації, які причетні до легалізації (відмивання) доходів, одержаних злочинним шляхом"]
[null,null,null,null,null,"Усього","Злочинних організацій"]
["а",null,null,null,"б",1,2]
["Виявлено осіб, учинивши кримінальні правопорушення у складі ОГ і ЗО",null,null,null,1]
["з них:","з корумпованими зв'язками",null,null,2]
[null,"у т.ч.:","в органах влади та управління",null,3]
[null,"з міжрегіональними зв'язками",null,null,4]
[null,"сформовані на етнічній основі",null,null,5]
[null,"з рядка 1","у бюджетній сфері",null,6]
[null,null,"у банківській системі",null,7]
[null,null,"у т.ч.:","у комерційних банках",8]
[null,null,"у фінансово-кредитній системі (без банків)",null,9]
[null,null,"у сфері приватизації",null,10]
[null,null,"у сфері земельних відносин",null,11]
[null,null,"у вугільній промисловості",null,12]
[null,null,"у нафтовій промисловості",null,13]
[null,null,"у електроенергетичному комплексі",null,14]
[null,null,"у металургійній промисловості",null,15]
["Дані про осіб в залежності від тривалості ОГ і ЗО",null,"до одного року",null,16]
[null,null,"до двох років",null,17]
[null,null,"від 3-х до 6-ти років",null,18]
[null,null,"більше 6-ти років",null,19]
["Контрольний рядок",null,null,null,20,{"$f":"SUM(F4:F22)","v":0},{"$f":"SUM(G4:G22)","v":0}]
[]
["Прокурор області"]
[]
["____________________________________",null,null,null,"Комашко В. В."]
[null,null,"(підпис)",null,"(П.І.Б.)"]
[]
["Виконавець:  __________________________",null,null,null,"Шкільнюк О. М."]
["Телефон:                                    факс:                                  електронна пошта: ______________________                  "]
[]
["Звіт складено в        примірнику"]
["Прим. №1",null,"                                                                                    "]
["Прим. №2",null,"                                                                                    ",null,"Вих. № ___  “____” ______________200__р."]

{"sheet":"2015","index":6,"n_rows":470,"n_cols":12,"rows_kept":470,"cut":false,"hidden":true,"merged":[]}
[]
[]
[]
[]
[]
[]
[]
[]
[]
[]
[]
[]
[]
[]
[]
[]
[]
[]
[]
[]
[]
[]
[]
[null,null,null,null,"x","x","x","x","x","x","x","x"]
[null,null,null,null,"x","x","x","x","x","x","x","x"]
[]
[]
[]
[]
[]
[]
[]
[]
[]
[]
[]
[]
[]
[]
[]
[]
[]
[]
[]
[]
[]
[]
[]
[]
[]
[]
[]
[]
[]
[]
[]
[]
[]
[]
[]
[]
[]
[]
[]
[]
[]
[]
[]
[]
[]
[]
[null,null,null,null,null,null,null,null,null,null,"x"]
[null,null,null,null,null,null,null,null,null,null,"x"]
[null,null,null,null,null,null,null,null,null,null,"x"]
[null,null,null,null,null,null,null,null,null,null,"x"]
[null,null,null,null,null,null,null,null,null,null,"x"]
[null,null,null,null,null,null,null,null,null,null,"x"]
[]
[]
[]
[]
[]
[]
[]
[]
[]
[]
[]
[]
[]
[]
[]
[]
[]
[]
[]
[]
[]
[]
[]
[]
[]
[]
[]
[]
[]
[]
[]
[]
[]
[]
[]
[]
[]
[]
[]
[]
[]
[]
[]
[]
[]
[]
[]
[]
[]
[]
[]
[]
[]
[]
[]
[]
[]
[]
[]
[]
[]
[]
[]
[]
[]
[]
[]
[]
[]
[]
[]
[]
[]
[]
[]
[]
[]
[null,null,null,null,"x","x","x","x","x","x","x","x"]
[null,null,null,null,"x","x","x","x","x","x","x","x"]
[]
[]
[]
[]
[]
[]
[]
[]
[]
[]
[]
[]
[]
[]
[]
[]
[]
[]
[]
[]
[]
[]
[]
[]
[]
[]
[]
[]
[]
[]
[]
[]
[]
[]
[]
[]
[]
[]
[]
[]
[]
[]
[]
[]
[]
[]
[null,null,null,null,null,null,null,null,null,null,"x"]
[null,null,null,null,null,null,null,null,null,null,"x"]
[null,null,null,null,null,null,null,null,null,null,"x"]
[null,null,null,null,null,null,null,null,null,null,"x"]
[null,null,null,null,null,null,null,null,null,null,"x"]
[null,null,null,null,null,null,null,null,null,null,"x"]
[]
[]
[]
[]
[]
[]
[]
[]
[]
[]
[]
[]
[]
[]
[]
[]
[]
[]
[]
[]
[]
[]
[]
[]
[]
[]
[]
[]
[]
[]
[]
[]
[]
[]
[]
[]
[]
[]
[]
[]
[]
[]
[]
[]
[]
[]
[]
[]
[]
[]
[]
[]
[]
[]
[]
[]
[]
[]
[]
[]
[]
[]
[]
[]
[]
[]
[]
[]
[]
[]
[]
[]
[]
[]
[]
[]
[]
[null,null,null,null,"x","x","x","x","x","x","x","x"]
[null,null,null,null,"x","x","x","x","x","x","x","x"]
[]
[]
[]
[]
[]
[]
[]
[]
[]
[]
[]
[]
[]
[]
[]
[]
[]
[]
[]
[]
[]
[]
[]
[]
[]
[]
[]
[]
[]
[]
[]
[]
[]
[]
[]
[]
[]
[]
[]
[]
[]
[]
[]
[]
[]
[]
[null,null,null,null,null,null,null,null,null,null,"x"]
[null,null,null,null,null,null,null,null,null,null,"x"]
[null,null,null,null,null,null,null,null,null,null,"x"]
[null,null,null,null,null,null,null,null,null,null,"x"]
[null,null,null,null,null,null,null,null,null,null,"x"]
[null,null,null,null,null,null,null,null,null,null,"x"]
[]
[]
[]
[]
[]
[]
[]
[]
[]
[]
[]
[]
[]
[]
[]
[]
[]
[]
[]
[]
[]
[]
[]
[]
[]
[]
[]
[]
[]
[]
[]
[]
[]
[]
[]
[]
[]
[]
[]
[]
[]
[]
[]
[]
[]
[]
[]
[]
[]
[]
[]
[]
[]
[]
[]
[]
[]
[]
[]
[]
[]
[]
[]
[]
[]
[]
[]
[]
[]
[]
[]
[]
[]
[]
[]
[]
[]
[null,null,null,null,"x","x","x","x","x","x","x","x"]
[null,null,null,null,"x","x","x","x","x","x","x","x"]
[]
[]
[]
[]
[]
[]
[]
[]
[]
[]
[]
[]
[]
[]
[]
[]
[]
[]
[]
[]
[]
[]
[]
[]
[]
[]
[]
[]
[]
[]
[]
[]
[]
[]
[]
[]
[]
[]
[]
[]
[]
[]
[]
[]
[]
[]
[null,null,null,null,null,null,null,null,null,null,"x"]
[null,null,null,null,null,null,null,null,null,null,"x"]
[null,null,null,null,null,null,null,null,null,null,"x"]
[null,null,null,null,null,null,null,null,null,null,"x"]
[null,null,null,null,null,null,null,null,null,null,"x"]
[null,null,null,null,null,null,null,null,null,null,"x"]